fUSD/lending_fUSD_20241127
["ID","MTS","AMOUNT","RATE_DAILY","PERIOD"]
[343500034,1732684233310,-1820.78,8.604e-05,2]
[343500035,1732684233320,-172.71,8.648e-05,2]
[343500036,1732684233331,-7865.31,8.683e-05,2]
[343500037,1732684233340,-3007.15,8.767e-05,2]
[343500038,1732684233350,-628.39,8.85e-05,2]
[343500039,1732684233360,-250.85,8.989e-05,2]
[343500040,1732684233370,-14148.39,8.989e-05,2]
[343500041,1732684233380,-168.02,9.03e-05,2]
[343500042,1732684233395,-255.0,9.144e-05,2]
[343500043,1732684233405,-1000.0,9.485e-05,2]
[343500044,1732684233415,-5247.7827,9.57e-05,2]
[343500045,1732684233425,-169.51,9.59e-05,2]
[343500046,1732684233435,-2500.0,9.601e-05,2]
[343500047,1732684233445,-9999.99,9.67e-05,2]
[343500048,1732684233455,-229.58,9.67e-05,2]
[343500049,1732684233467,-999.99,9.67e-05,2]
[343500050,1732684233477,-1516.15,9.67e-05,2]
[343500051,1732684233487,-15361.63,9.67e-05,2]
[343500052,1732684233498,-150.99,9.67e-05,2]
[343500053,1732684233508,-9550.0583,9.701e-05,2]
[343500054,1732684233518,-50895.27600871,9.701e-05,2]
[343500055,1732684233535,-8782.17293399,9.701e-05,2]
[343500056,1732684238195,-2162.60229967,9.701e-05,2]
[343500057,1732684238208,-2494.28370828,9.701e-05,2]
[343500207,1732684240203,-4803.50937857,9.701e-05,2]
[343500284,1732684244005,-4607.9999998,9.701e-05,2]
[343500286,1732684244057,-2798.02139959,9.701e-05,2]
[343500288,1732684244069,-9676.91797139,9.701e-05,2]
[343500290,1732684244080,-150.0,9.748e-05,2]
[343500291,1732684244090,-168.02,9.783e-05,2]
[343500292,1732684244100,-502.09802867,9.791e-05,2]
[343500293,1732684244112,-9167.15448662,9.791e-05,2]
[343500294,1732684244124,-21543.51752558,9.791e-05,2]
[343500295,1732684244134,-1802.7332,9.8e-05,2]
[343500296,1732684244143,-2549.6734,9.8e-05,2]
[343500297,1732684244154,-4144.5874,9.8e-05,2]
[343500298,1732684244163,-24241.6951,9.8e-05,2]
[343500299,1732684244173,-1074.7057,9.8e-05,2]
[343500300,1732684244183,-1000.0,9.8e-05,2]
[343500301,1732684244193,-3952.7882,9.8e-05,2]
[343500302,1732684244202,-5459.9968,9.8e-05,2]
[343500303,1732684244212,-2500.0,9.8e-05,2]
[343500304,1732684244222,-24769.06784231,9.801e-05,2]
[343500306,1732684246095,-23161.75,9.801e-05,2]
[343500307,1732684246502,-1308.0504925,9.801e-05,2]
[343500311,1732684699363,150.0,0.00028,60]
[343500312,1732684700764,150.0,0.00028,60]
[343500313,1732684701452,150.0,0.00028,60]
[343500314,1732684702131,150.0,0.00028,60]
[343500315,1732684702807,150.0,0.00028,60]
[343500316,1732684704386,150.0,0.00028,60]
[343500317,1732684704661,150.0,0.00028,60]
[343500318,1732684706899,150.0,0.00028,60]
[343500319,1732684708277,150.0,0.00028,60]
[343500320,1732684709198,150.0,0.00028,60]
[343500321,1732684766792,191.95,0.00016658,30]
[343500322,1732684778355,2133.94,0.00028,60]
[343500324,1732684928259,4482.0,0.00028,60]
[343500325,1732684979609,500.0,0.00028,60]
[343500326,1732685014778,44039.26423789,0.0001511,30]
[343500330,1732685212091,-172.77,7.191e-05,2]
[343500331,1732685212114,-1539.11,8.219e-05,2]
[343500332,1732685212140,-57.30691141,8.622e-05,2]
[343500338,1732685253301,39322.3395456,1e-06,7]
[343500339,1732685330222,2159.16418406,0.0001421,7]
[343500348,1732685432300,-1462.15,8.219e-05,2]
[343500350,1732685432310,-50.53,8.738e-05,2]
[343500355,1732685432376,-1030.23,8.738e-05,2]
[343500356,1732685432389,-1000.0,8.753e-05,2]
[343500357,1732685432398,-300.0,8.773e-05,2]
[343500358,1732685432408,-2662.73853284,8.774e-05,2]
[343500359,1732685432432,-408.06,8.774e-05,2]
[343500360,1732685432483,-16085.0,8.774e-05,2]
[343500361,1732685432495,-700.0,8.774e-05,2]
[343500362,1732685432506,-4044.20146716,8.774e-05,2]
[343500363,1732685432516,-250.0,8.796e-05,2]
[343500364,1732685432525,-502.71,8.897e-05,2]
[343500365,1732685432535,-250.0,8.927e-05,2]
[343500366,1732685432544,-250.0,8.978e-05,2]
[343500367,1732685432554,-200.0,8.978e-05,2]
[343500368,1732685432563,-168.02,8.978e-05,2]
[343500369,1732685432572,-215.06853284,8.989e-05,2]
[343500370,1732685432583,-163.33146716,8.989e-05,2]
[343500371,1732685432594,-150.0,8.999e-05,2]
[343500372,1732685432603,-1046.66853284,9e-05,2]
[343500373,1732685432619,-1594.44501813,9e-05,2]
[343500374,1732685432636,-14592.69621938,9e-05,2]
[343500375,1732685432647,-4731.58052666,9e-05,2]
[343500376,1732685432747,-2391.36593347,9e-05,2]
[343500377,1732685432759,-1643.24376952,9e-05,2]
[343500378,1732685432769,-1097.96,9.072e-05,2]
[343500379,1732685432778,-587.65,9.107e-05,2]
[343500380,1732685432788,-170.59,9.233e-05,2]
[343500381,1732685432798,-2076.739,9.311e-05,2]
[343500382,1732685432807,-165.828,9.311e-05,2]
[343500383,1732685432816,-412.94038951,9.5e-05,2]
[343500384,1732685432825,-6291.81714097,9.501e-05,2]
[343500385,1732685432869,-751.00001,9.501e-05,2]
[343500391,1732685438635,-712184.60474903,9.501e-05,2]
[343500392,1732685438645,-30992.2319,9.501e-05,2]
[343500393,1732685438655,-1000.0,9.601e-05,2]
[343500394,1732685438666,-245000.0,9.601e-05,2]
[343500395,1732685438676,-420.0,9.65e-05,2]
[343500396,1732685438685,-150.99,9.67e-05,2]
[343500397,1732685438695,-299.99,9.67e-05,2]
[343500398,1732685438706,-7521.86,9.67e-05,2]
[343500399,1732685438719,-987.58,9.67e-05,2]
[343500400,1732685438730,-999.99,9.67e-05,2]
[343500401,1732685438741,-9066.8330403,9.795e-05,2]
[343500402,1732685438751,-100000.0,9.8e-05,2]
[343500403,1732685438761,-500.0,9.8e-05,2]
[343500404,1732685438770,-205.0,9.8e-05,2]
[343500405,1732685438780,-1000.0,9.847e-05,2]
[343500406,1732685438789,-150.0,9.854e-05,2]
[343500407,1732685438799,-399.37070912,9.867e-05,2]
[343500408,1732685438809,-3818.0479288,9.88e-05,2]
[343500409,1732685438818,-255.0,9.899e-05,2]
[343500410,1732685438829,-1000.0,9.9e-05,2]
[343500411,1732685438839,-4621.0,9.973e-05,2]
[343500412,1732685438848,-3980.0,9.973e-05,2]
[343500413,1732685438859,-500.63299769,9.973e-05,2]
[343500414,1732685438869,-500.0,9.973e-05,2]
[343500415,1732685438879,-500.0,9.973e-05,2]
[343500416,1732685438888,-500.0,9.973e-05,2]
[343500417,1732685438898,-151.22191472,9.99e-05,2]
[343500418,1732685438909,-156.75368848,9.999e-05,2]
[343500419,1732685438919,-4294.76244323,9.999e-05,2]
[343500420,1732685438929,-2240.25578106,9.999e-05,2]
[343500421,1732685438940,-1183.62944616,0.0001,2]
[343500422,1732685438950,-1183.62944612,0.0001,2]
[343500424,1732685438960,-1183.62944612,0.0001,2]
[343500425,1732685438970,-1183.62944612,0.0001,2]
[343500427,1732685438980,-1183.62944612,0.0001,2]
[343500429,1732685438989,-1183.62944612,0.0001,2]
[343500430,1732685438999,-1183.62944612,0.0001,2]
[343500432,1732685439008,-1183.62944612,0.0001,2]
[343500433,1732685439017,-1183.62944612,0.0001,2]
[343500435,1732685439027,-36967254.76652064,0.0001,2]
[343500438,1732685439037,-300.0,0.0001,2]
[343500439,1732685439046,-10000.0,0.0001,2]
[343500441,1732685439056,-1000.0,0.0001,2]
[343500443,1732685439066,-1000.0,0.0001,2]
[343500444,1732685439076,-1000.0,0.0001,2]
[343500446,1732685439085,-1000.0,0.0001,2]
[343500448,1732685439095,-1000.0,0.0001,2]
[343500449,1732685439105,-1000.0,0.0001,2]
[343500451,1732685439115,-1000.0,0.0001,2]
[343500453,1732685439125,-1000.0,0.0001,2]
[343500455,1732685439135,-1000.0,0.0001,2]
[343500456,1732685439144,-1000.0,0.0001,2]
[343500458,1732685439154,-1000.0,0.0001,2]
[343500460,1732685439165,-1000.0,0.0001,2]
[343500462,1732685439177,-1000.0,0.0001,2]
[343500463,1732685439186,-1000.0,0.0001,2]
[343500465,1732685439196,-1000.0,0.0001,2]
[343500467,1732685439205,-1000.0,0.0001,2]
[343500469,1732685439215,-1000.0,0.0001,2]
[343500470,1732685439225,-1000.0,0.0001,2]
[343500472,1732685439235,-1000.0,0.0001,2]
[343500474,1732685439244,-1000.0,0.0001,2]
[343500475,1732685439254,-1000.0,0.0001,2]
[343500477,1732685439265,-1000.0,0.0001,2]
[343500479,1732685439275,-1000.0,0.0001,2]
[343500480,1732685439286,-1000.0,0.0001,2]
[343500481,1732685439298,-1000.0,0.0001,2]
[343500482,1732685439308,-1000.0,0.0001,2]
[343500483,1732685439317,-1000.0,0.0001,2]
[343500484,1732685439327,-1000.0,0.0001,2]
[343500485,1732685439337,-1000.0,0.0001,2]
[343500486,1732685439348,-1000.0,0.0001,2]
[343500487,1732685439358,-1000.0,0.0001,2]
[343500488,1732685439368,-1000.0,0.0001,2]
[343500489,1732685439378,-1000.0,0.0001,2]
[343500490,1732685439391,-1000.0,0.0001,2]
[343500491,1732685439401,-1000.0,0.0001,2]
[343500492,1732685439413,-1000.0,0.0001,2]
[343500493,1732685439423,-1144.92638731,0.0001,2]
[343500494,1732685439432,-1000.0,0.0001,2]
[343500495,1732685439442,-1341.0,0.0001,2]
[343500496,1732685439452,-63699.05102975,0.0001,2]
[343500497,1732685439462,-7156.08033865,0.0001,2]
[343500498,1732685439473,-150.0,0.0001,2]
[343500499,1732685439483,-1012.0,0.0001,2]
[343500500,1732685439493,-2064.41348,0.0001,2]
[343500501,1732685439504,-1000.0,0.0001,2]
[343500502,1732685439514,-1000.0,0.0001,2]
[343500503,1732685439525,-151.22191472,0.0001,2]
[343500504,1732685439535,-65266754.38149938,0.0001,2]
[343500507,1732685440860,-4222.51673914,0.0001,2]
[343500508,1732685440942,-701.90932538,0.0001,2]
[343500509,1732685443270,-21321.69000001,0.0001,2]
[343500511,1732685443327,-2577.47945973,0.0001,2]
[343500512,1732685443347,-1742.10173705,0.0001,2]
[343500513,1732685443463,-196.57632344,0.0001,2]
[343500516,1732685443694,-86661.72204793,0.0001,2]
[343500564,1732685446673,-3578.96870269,9.999e-05,2]
[343500566,1732685446684,-14966.32620691,0.0001,2]
[343500594,1732685448194,940.618207,0.00028,60]
[343500595,1732685593410,254.29,0.00010692,6]
[343500597,1732685634739,150.0,0.00028,60]
[343500598,1732685636009,150.0,0.00028,60]
[343500599,1732685636542,150.0,0.00028,60]
[343500600,1732685637037,150.0,0.00028,60]
[343500601,1732685637515,150.0,0.00028,60]
[343500602,1732685638018,150.0,0.00028,60]
[343500603,1732685638502,150.0,0.00028,60]
[343500604,1732685639032,150.0,0.00028,60]
[343500605,1732685639800,150.0,0.00028,60]
[343500606,1732685640087,150.0,0.00028,60]
[343500609,1732686138518,239.84,0.00016658,30]
[343500613,1732686558113,-248.26740643,8.219e-05,2]
[343500614,1732686558138,-732.55276488,8.219e-05,2]
[343500674,1732686632539,-697.47723512,8.219e-05,2]
[343500676,1732686632551,-337.72087661,8.219e-05,2]
[343500679,1732686632560,-168.02,8.796e-05,2]
[343500681,1732686632570,-250.0,8.938e-05,2]
[343500683,1732686632580,-403.38,8.941e-05,2]
[343500685,1732686632591,-250.0,8.963e-05,2]
[343500687,1732686632600,-23900.0,9.011e-05,2]
[343500689,1732686632610,-1000.0,9.025e-05,2]
[343500691,1732686632619,-250.0,9.145e-05,2]
[343500693,1732686632629,-171.14,9.149e-05,2]
[343500695,1732686632638,-20210.0,9.51e-05,2]
[343500697,1732686632648,-171.14,9.527e-05,2]
[343500699,1732686632657,-150.0,9.589e-05,2]
[343500701,1732686632667,-183.79,9.605e-05,2]
[343500702,1732686632676,-164.59,9.651e-05,2]
[343500705,1732686632686,-150.0,9.669e-05,2]
[343500707,1732686632696,-689.5,9.67e-05,2]
[343500708,1732686632706,-1712.22,9.67e-05,2]
[343500710,1732686632716,-987.58,9.67e-05,2]
[343500712,1732686632726,-1102.17,9.67e-05,2]
[343500713,1732686632736,-2935.54,9.67e-05,2]
[343500714,1732686632745,-299.99,9.67e-05,2]
[343500715,1732686632755,-150.99,9.67e-05,2]
[343500716,1732686632764,-8583.44,9.67e-05,2]
[343500717,1732686632774,-150.99,9.67e-05,2]
[343500718,1732686632784,-3477.07,9.67e-05,2]
[343500719,1732686632794,-306.24,9.67e-05,2]
[343500720,1732686632804,-1516.15,9.67e-05,2]
[343500721,1732686632813,-1505.33,9.67e-05,2]
[343500722,1732686632824,-1000.0,9.7e-05,2]
[343500723,1732686632834,-165.82976819,9.702e-05,2]
[343500724,1732686632844,-1661.392,9.702e-05,2]
[343500725,1732686632854,-548.98,9.749e-05,2]
[343500726,1732686632865,-2002.64685325,9.791e-05,2]
[343500727,1732686632874,-9550.0583,9.8e-05,2]
[343500728,1732686632883,-1000.0,9.8e-05,2]
[343500729,1732686632892,-2500.0,9.8e-05,2]
[343500730,1732686632902,-2500.0,9.8e-05,2]
[343500731,1732686632912,-150.0,9.854e-05,2]
[343500732,1732686632921,-830.0,9.9e-05,2]
[343500733,1732686632931,-500.0,9.9e-05,2]
[343500734,1732686632940,-100000.0,9.9e-05,2]
[343500735,1732686632950,-1000.0,9.9e-05,2]
[343500736,1732686632960,-719227.4219,9.9e-05,2]
[343500737,1732686632969,-949.233,9.9e-05,2]
[343500738,1732686632979,-30992.2319,9.9e-05,2]
[343500739,1732686632989,-245000.0,9.9e-05,2]
[343500740,1732686632998,-171.14,9.904e-05,2]
[343500741,1732686633008,-325.38679831,9.922e-05,2]
[343500742,1732686633018,-8601.0,9.973e-05,2]
[343500743,1732686633028,-500.63299769,9.973e-05,2]
[343500744,1732686633037,-500.0,9.973e-05,2]
[343500745,1732686633047,-500.0,9.973e-05,2]
[343500746,1732686633056,-188.26628345,9.973e-05,2]
[343500747,1732686633066,-500.0,9.973e-05,2]
[343500748,1732686633080,-151.22191472,9.99e-05,2]
[343500749,1732686633090,-4810.4686394,9.995e-05,2]
[343500750,1732686633100,-4064.0839208,9.995e-05,2]
[343500751,1732686633110,-1588.4166168,9.995e-05,2]
[343500752,1732686633122,-156.75368848,9.999e-05,2]
[343500753,1732686633132,-3698.26765945,9.999e-05,2]
[343500754,1732686633142,-1217.94061308,9.999e-05,2]
[343500755,1732686633155,-325.38679837,0.0001,2]
[343500756,1732686633167,-890687.37629142,0.0001,2]
[343500757,1732686633219,-74028.07637368,0.0001,2]
[343500758,1732686633232,-20395.9,0.0001,2]
[343500759,1732686633401,-4889.63578886,0.0001,2]
[343500760,1732686633917,5000.0,0.00028,60]
[343500761,1732686637857,-66868.34961516,0.0001,2]
[343500762,1732686637870,-33370.48898777,0.0001,2]
[343500772,1732686639671,-68698.421,0.0001,2]
[343500773,1732686639778,-1862.1484089,0.0001,2]
[343500774,1732686639792,-3034.0246208,0.0001,2]
[343500775,1732686639804,-4019.09127962,0.0001,2]
[343500776,1732686639817,-315.6,0.0001,2]
[343500784,1732686643361,-2661.12684339,0.0001,2]
[343500785,1732686643373,-2948.87980768,0.0001,2]
[343500786,1732686643440,-17479.76080931,0.0001,2]
[343500787,1732686643452,-7686.95999513,0.0001,2]
[343500788,1732686643463,-11506.0000003,0.0001,2]
[343500789,1732686645514,-418.1127378,0.0001,2]
[343500790,1732686645526,-326.8872622,0.0001,2]
[343500791,1732686645537,-18.0127378,0.0001,2]
[343500792,1732686645585,-12977.24371472,0.0001,2]
[343500793,1732686645597,-3810.32456387,0.0001,2]
[343500794,1732686645697,-9281.5,0.0001,2]
[343500795,1732686661606,5580.0,0.00028,60]
[343500797,1732686737633,2408.0,0.00016,7]
[343500798,1732686829845,150.0,0.00028,60]
[343500799,1732686830111,150.0,0.00028,60]
[343500800,1732686830448,150.0,0.00028,60]
[343500801,1732686830791,150.0,0.00028,60]
[343500802,1732686831150,150.0,0.00028,60]
[343500803,1732686831733,150.0,0.00028,60]
[343500804,1732686832207,150.0,0.00028,60]
[343500805,1732686832716,150.0,0.00028,60]
[343500806,1732686833273,150.0,0.00028,60]
[343500807,1732686833822,150.0,0.00028,60]
[343500808,1732687247749,4000.0,0.00028,60]
[343500809,1732687266460,3000.0,0.00028,60]
[343500811,1732687400616,313.33,0.00010692,6]
[343500812,1732687430554,1660.2,0.00010692,6]
[343500815,1732687623776,800.0,0.00026986,120]
[343500816,1732687752275,-1444.95,8.219e-05,2]
[343500817,1732687752297,-250.0,8.937e-05,2]
[343500818,1732687752319,-479.360124,8.951e-05,2]
[343500830,1732687831818,-1812.77064109,8.951e-05,2]
[343500831,1732687831830,-455.63082927,8.951e-05,2]
[343500832,1732687831844,-404.92261432,8.951e-05,2]
[343500833,1732687832066,-20747.31579132,8.951e-05,2]
[343500834,1732687832077,-415.02,9.007e-05,2]
[343500835,1732687832087,-250.0,9.026e-05,2]
[343500836,1732687832097,-402.16,9.041e-05,2]
[343500837,1732687832108,-587.65,9.041e-05,2]
[343500838,1732687832118,-250.0,9.052e-05,2]
[343500839,1732687832128,-1000.0,9.062e-05,2]
[343500841,1732687832138,-150.0,9.669e-05,2]
[343500843,1732687832147,-150.99,9.67e-05,2]
[343500845,1732687832157,-475.78,9.67e-05,2]
[343500846,1732687832167,-1440.84,9.67e-05,2]
[343500848,1732687832176,-999.99,9.67e-05,2]
[343500849,1732687832186,-567.74,9.67e-05,2]
[343500850,1732687832195,-6340.23,9.67e-05,2]
[343500851,1732687832205,-1880.79,9.67e-05,2]
[343500852,1732687832214,-4.83443502,9.67e-05,2]
[343500853,1732687832227,-295.15556498,9.67e-05,2]
[343500854,1732687832236,-781.53,9.67e-05,2]
[343500856,1732687832246,-9999.99,9.67e-05,2]
[343500858,1732687832259,-9423.55915579,9.69e-05,2]
[343500859,1732687832269,-1329.113,9.7e-05,2]
[343500860,1732687832279,-165.828,9.7e-05,2]
[343500861,1732687832289,-289.17060415,9.8e-05,2]
[343500862,1732687832311,-710.82939585,9.8e-05,2]
[343500863,1732687832321,-327.71122038,9.8e-05,2]
[343500865,1732687832848,-46138.1602016,9.8e-05,2]
[343500867,1732687837778,-51520.0,9.8e-05,2]
[343500868,1732687837900,-1948.73226967,9.8e-05,2]
[343500869,1732687837912,-11421.94196907,9.8e-05,2]
[343500875,1732687840374,-2796.61253527,9.8e-05,2]
[343500876,1732687840408,-1208.89237987,9.8e-05,2]
[343500880,1732687843096,-250.0,9.543e-05,2]
[343500881,1732687843106,-3285.85820645,9.8e-05,2]
[343500884,1732687853951,4441.48,0.00028,60]
[343500886,1732688158305,319.1038423,0.00028,60]
[343500887,1732688222408,150.0,0.00028,60]
[343500888,1732688223487,150.0,0.00028,60]
[343500889,1732688224325,150.0,0.00028,60]
[343500890,1732688226408,150.0,0.00028,60]
[343500891,1732688226693,150.0,0.00028,60]
[343500892,1732688227071,150.0,0.00028,60]
[343500893,1732688227465,150.0,0.00028,60]
[343500894,1732688228309,150.0,0.00028,60]
[343500895,1732688229093,150.0,0.00028,60]
[343500896,1732688229897,150.0,0.00028,60]
[343500897,1732688238219,150.0,0.00028,60]
[343500898,1732688238738,150.0,0.00028,60]
[343500899,1732688412096,1000.0,0.00028,60]
[343500900,1732688422081,1000.0,0.00028,60]
[343500901,1732688431693,1000.0,0.00028,60]
[343500902,1732688441525,1000.0,0.00028,60]
[343500903,1732688453085,1000.0,0.00028,60]
[343500904,1732688477734,1000.0,0.00028,60]
[343500905,1732688492177,1000.0,0.00028,60]
[343500906,1732688512842,1000.0,0.00028,60]
[343500909,1732688800416,-1065.12579214,8.219e-05,2]
[343500910,1732688812403,3932.0,0.00025999,120]
[343500911,1732688842436,153.05704099,0.00015,15]
[343500915,1732688869083,-800.0,8.219e-05,2]
[343500916,1732688870641,-543.13,8.219e-05,2]
[343500917,1732688870665,-250.0,8.953e-05,2]
[343500918,1732688870687,-6.87,9.041e-05,2]
[343500919,1732688872089,-168.04,8.887e-05,2]
[343500920,1732688872115,-631.96,9.041e-05,2]
[343500921,1732688874572,-800.0,9.041e-05,2]
[343500922,1732688875349,2000.0,0.000187,45]
[343500923,1732688883194,-341.82,9.041e-05,2]
[343500924,1732688883218,-250.0,9.041e-05,2]
[343500925,1732688883242,-108.18,9.061e-05,2]
[343500926,1732688890113,2000.0,0.000187,45]
[343500928,1732688925030,6000.0,0.00028,60]
[343500929,1732688949607,680.34,0.00028,120]
[343500936,1732689021127,2000.0,0.00028,60]
[343500946,1732689032330,-319.36,8.927e-05,2]
[343500947,1732689032340,-200.0,8.993e-05,2]
[343500948,1732689032350,-300.0,9.054e-05,2]
[343500949,1732689032359,-11951.3147211,9.055e-05,2]
[343500950,1732689032369,-891.82,9.061e-05,2]
[343500951,1732689032379,-377.75779214,9.117e-05,2]
[343500958,1732689032591,-4387.69979234,9.117e-05,2]
[343500959,1732689032605,-497.95680311,9.117e-05,2]
[343500960,1732689032619,-18636.58561241,9.117e-05,2]
[343500961,1732689032629,-374.14,9.119e-05,2]
[343500962,1732689032639,-250.0,9.123e-05,2]
[343500963,1732689032648,-168.02,9.205e-05,2]
[343500964,1732689032658,-170.59,9.27e-05,2]
[343500965,1732689032667,-166.34,9.506e-05,2]
[343500966,1732689032676,-150.0,9.669e-05,2]
[343500967,1732689032686,-999.99,9.67e-05,2]
[343500968,1732689032695,-150.99,9.67e-05,2]
[343500969,1732689032704,-7521.86,9.67e-05,2]
[343500970,1732689032715,-299.99,9.67e-05,2]
[343500971,1732689032724,-1000.0,9.7e-05,2]
[343500972,1732689032733,-1000.0,9.7e-05,2]
[343500973,1732689032742,-1000.0,9.7e-05,2]
[343500974,1732689032751,-13011.3394,9.8e-05,2]
[343500975,1732689032760,-3835.41728599,9.8e-05,2]
[343500979,1732689037951,-1000.0,9.7e-05,2]
[343500980,1732689037960,-2427.09301412,9.8e-05,2]
[343500981,1732689037973,-187108.84167399,9.8e-05,2]
[343500982,1732689037984,-9450.89520347,9.8e-05,2]
[343500983,1732689038038,-524.5,9.8e-05,2]
[343500984,1732689038124,-1991.72790548,9.8e-05,2]
[343500985,1732689038297,-39661.52491695,9.8e-05,2]
[343500987,1732689038306,-500.0,9.8e-05,2]
[343500989,1732689038316,-100000.0,9.8e-05,2]
[343501010,1732689038565,-1000.0,9.8e-05,2]
[343501011,1732689038574,-205.0,9.8e-05,2]
[343501012,1732689038584,-15547.2768614,9.848e-05,2]
[343501013,1732689038593,-2500.0,9.9e-05,2]
[343501014,1732689038602,-500.0,9.973e-05,2]
[343501015,1732689038612,-159.82939057,9.973e-05,2]
[343501016,1732689038621,-500.60198426,9.973e-05,2]
[343501017,1732689038630,-500.0,9.973e-05,2]
[343501018,1732689038639,-401.06035353,9.973e-05,2]
[343501019,1732689038649,-810.82489545,9.973e-05,2]
[343501020,1732689038658,-3113.77659768,9.999e-05,2]
[343501021,1732689038667,-1036.4096137,9.999e-05,3]
[343501022,1732689038676,-517.0,0.0001,2]
[343501023,1732689038685,-810.8248955,0.0001,2]
[343501024,1732689038695,-810.82489545,0.0001,2]
[343501025,1732689038704,-7564251.25778627,0.0001,2]
[343501026,1732689038715,-213.33234164,0.0001,2]
[343501027,1732689038725,-2605.60224483,0.0001,2]
[343501028,1732689038735,-8011.14046629,0.0001,2]
[343501029,1732689038744,-1000.0,0.0001,2]
[343501030,1732689038753,-150.0,0.0001,2]
[343501031,1732689038763,-150.0,0.0001,2]
[343501032,1732689038772,-1000.0,0.0001,2]
[343501033,1732689038781,-1000.0,0.0001,2]
[343501034,1732689038790,-430.54391454,0.0001,2]
[343501035,1732689038799,-188.20762309,0.0001,2]
[343501036,1732689038808,-166.83757373,0.0001,2]
[343501037,1732689038817,-237.01488859,0.0001,2]
[343501038,1732689038827,-500.0,0.0001,2]
[343501039,1732689038836,-1955.26442,0.0001,2]
[343501040,1732689038844,-95057952.70299353,0.0001,2]
[343501041,1732689039931,-348.93621717,9.061e-05,2]
[343501042,1732689039943,-2324.4146887,0.0001,2]
[343501043,1732689039955,-69313.033,0.0001,2]
[343501044,1732689039969,-9254.6453,0.0001,2]
[343501045,1732689039999,-514.46489758,0.0001,2]
[343501046,1732689040129,-2330.875,0.0001,2]
[343501047,1732689040151,-93323.32561812,0.0001,2]
[343501057,1732689043189,-1674.42301967,0.0001,2]
[343501058,1732689043201,-3634.59788886,0.0001,2]
[343501061,1732689043420,-118.34731019,0.0001,2]
[343501062,1732689043550,-93374.6840676,0.0001,2]
[343501063,1732689043562,-624.35123033,0.0001,2]
[343501064,1732689043573,-23228.43172948,0.0001,2]
[343501065,1732689043585,-37367.235906,0.0001,2]
[343501084,1732689045813,-7795.63774992,0.0001,2]
[343501085,1732689045900,-2060.90219265,0.0001,2]
[343501086,1732689046089,-17152.88947269,0.0001,2]
[343501087,1732689046183,-1459.5,0.0001,2]
[343501098,1732689055123,-1701.3678,9.7e-05,2]
[343501099,1732689055151,-298.6322,9.999e-05,2]
[343501100,1732689321244,150.0,0.00028,60]
[343501101,1732689322250,150.0,0.00028,60]
[343501102,1732689322826,150.0,0.00028,60]
[343501103,1732689323368,150.0,0.00028,60]
[343501104,1732689323842,150.0,0.00028,60]
[343501105,1732689324352,150.0,0.00028,60]
[343501106,1732689324847,150.0,0.00028,60]
[343501107,1732689325339,150.0,0.00028,60]
[343501108,1732689325853,150.0,0.00028,60]
[343501109,1732689326366,150.0,0.00028,60]
[343501114,1732689773771,-800.0,8.219e-05,2]
[343501115,1732689775328,-579.9,8.219e-05,2]
[343501116,1732689817667,165.71688889,8.18e-05,2]
[343501117,1732689817689,84.62892021,8.18e-05,2]
[343501119,1732689972059,-156.08033965,9e-05,2]
[343501120,1732689972080,-250.0,9.016e-05,2]
[343501121,1732689972101,-393.91966035,9.016e-05,2]
[343501122,1732689973669,-800.0,9.016e-05,2]
[343501123,1732689975331,-800.0,9.016e-05,2]
[343501124,1732690014247,-150.0,9e-05,2]
[343501125,1732690035520,349.71181255,0.00028,60]
[343501128,1732690149498,800.0,0.00026986,120]